fUSD/lending_fUSD_20250814
["ID","MTS","AMOUNT","RATE_DAILY","PERIOD"]
[379139632,1755157846746,-500.0,0.000395,14]
[379139633,1755157846756,-1044.61667068,0.00039536,33]
[379139634,1755157846766,-500.0,0.000396,14]
[379139635,1755157846776,-178.33,0.00039654,2]
[379139636,1755157846786,-150.0,0.00039696,2]
[379139637,1755157846795,-500.0,0.000397,14]
[379139638,1755157846805,-1000.0,0.00039726,30]
[379139639,1755157846816,-1347.0,0.000398,14]
[379139640,1755157846826,-26.5866536,0.0003988,120]
[379139641,1755157912704,166.42,0.00013699,2]
[379139662,1755158432494,840.17,0.0003013,120]
[379139676,1755158829205,169.021808,7.945e-05,2]
[379139686,1755159032515,-166.42,0.00020187,2]
[379139687,1755159032526,-163.81286783,0.00020994,2]
[379139688,1755159032535,-215.68844194,0.00021069,2]
[379139689,1755159032545,-250.0,0.00021094,2]
[379139690,1755159032554,-300.0,0.00021094,2]
[379139691,1755159032564,-176.34,0.00022,2]
[379139692,1755159032573,-250.0,0.00022206,2]
[379139693,1755159032583,-300.0,0.00022206,2]
[379139694,1755159032594,-1000.0,0.00022206,3]
[379139695,1755159032604,-1000.0,0.00022206,3]
[379139696,1755159032613,-250.0,0.0002327,2]
[379139697,1755159032623,-300.0,0.0002327,2]
[379139698,1755159032633,-1000.0,0.0002327,3]
[379139699,1755159032644,-176.34,0.00024528,2]
[379139700,1755159032654,-261.0,0.00024735,2]
[379139701,1755159032664,-1200.0,0.00024899,2]
[379139702,1755159032678,-1643.86183623,0.000249,2]
[379139703,1755159032689,-150.0,0.00025,30]
[379139704,1755159032704,-300.0,0.00026541,2]
[379139705,1755159032714,-1608.892461,0.00026542,2]
[379139706,1755159032728,-166.42,0.00026676,2]
[379139707,1755159032738,-224.59043438,0.00027037,2]
[379139708,1755159032748,-176.34,0.00027055,7]
[379139709,1755159032757,-878.00216194,0.00027099,2]
[379139710,1755159032770,-323.99783806,0.00027099,2]
[379139711,1755159032780,-520.0,0.00027137,2]
[379139712,1755159032790,-556.0,0.00027137,2]
[379139713,1755159032809,-512.0,0.00027137,2]
[379139714,1755159032819,-512.0,0.00027137,2]
[379139715,1755159032828,-512.0,0.00027137,2]
[379139716,1755159032838,-512.0,0.00027137,2]
[379139717,1755159032847,-512.0,0.00027137,2]
[379139718,1755159032857,-512.0,0.00027137,2]
[379139719,1755159032867,-514.0,0.00027137,2]
[379139720,1755159032876,-309.87762841,0.00027137,2]
[379139721,1755159032888,-195.12237159,0.00027137,2]
[379139722,1755159032898,-517.0,0.00027137,2]
[379139723,1755159032912,-1643.86183606,0.00027827,8]
[379139724,1755159032922,-408.03445272,0.000281,5]
[379139725,1755159032939,-500.0,0.000281,5]
[379139726,1755159032950,-500.0,0.000281,5]
[379139727,1755159032960,-491.24427843,0.000281,5]
[379139728,1755159032973,-8.75572157,0.000281,5]
[379139729,1755159032984,-505.13495878,0.000281,5]
[379139730,1755159032994,-1644.0,0.000295,2]
[379139731,1755159033006,-176.34,0.00029583,30]
[379139732,1755159033016,-261.0,0.00029651,2]
[379139733,1755159033035,-60.14268042,0.00029815,10]
[379139734,1755159033055,-1677.49885975,0.00029815,10]
[379139735,1755159033117,-22.84845983,0.00029815,10]
[379139736,1755159033128,-299.99,0.00029815,12]
[379139737,1755159033138,-254.49104337,0.00029815,2]
[379139738,1755159033149,-188.69895663,0.00029815,2]
[379139739,1755159033160,-150.99,0.00029815,2]
[379139740,1755159033183,-8683.67,0.00029815,2]
[379139741,1755159033194,-1280.0,0.0003,3]
[379139742,1755159033205,-1880.0,0.0003,3]
[379139743,1755159033216,-160.48,0.000301,2]
[379139744,1755159033227,-5513.0,0.000304,3]
[379139745,1755159033237,-1643.86183606,0.00030754,14]
[379139746,1755159033248,-500.0,0.00031205,2]
[379139747,1755159033259,-5513.0,0.000313,5]
[379139748,1755159033269,-4098.2,0.00032038,2]
[379139749,1755159033279,-87.93126821,0.00032111,30]
[379139750,1755159033292,-88.40873179,0.00032111,30]
[379139751,1755159033306,-224.59043438,0.00032197,2]
[379139752,1755159033316,-165.55,0.00032561,2]
[379139753,1755159033326,-346.80107883,0.00032618,2]
[379139754,1755159033369,-458.91048058,0.00032618,2]
[379139755,1755159033382,-4194.28844059,0.00032618,2]
[379139756,1755159033392,-837.38,0.00032868,2]
[379139757,1755159033402,-3333.0,0.00033,5]
[379139758,1755159033412,-166.42,0.00033165,2]
[379139759,1755159033422,-160.0,0.00033324,2]
[379139760,1755159033432,-211.86673127,0.0003335,2]
[379139761,1755159033442,-1607.43,0.00033601,2]
[379139762,1755159033454,-1607.43,0.00033619,2]
[379139763,1755159033464,-1607.43,0.00033637,2]
[379139764,1755159033475,-1607.43,0.00033654,2]
[379139765,1755159033485,-248.89850669,0.00033672,2]
[379139766,1755159033497,-718.35539547,0.00033672,2]
[379139767,1755159033509,-640.17609784,0.00033672,2]
[379139768,1755159033520,-681.81540193,0.00033682,21]
[379139771,1755159037840,-962.04643413,0.00033682,21]
[379139772,1755159037852,-1607.43,0.0003369,2]
[379139773,1755159037864,-1607.43,0.00033707,2]
[379139774,1755159037876,-1607.43,0.00033725,2]
[379139775,1755159037888,-1607.43,0.00033743,2]
[379139776,1755159037900,-1607.43,0.0003376,2]
[379139777,1755159037912,-250.0,0.00033768,2]
[379139778,1755159037924,-1607.43,0.00033778,2]
[379139779,1755159037936,-1607.43,0.00033796,2]
[379139780,1755159037947,-1607.43,0.00033813,2]
[379139781,1755159037959,-1607.43,0.00033831,2]
[379139782,1755159037971,-1607.43,0.00033849,2]
[379139783,1755159037989,-1607.43,0.00033866,2]
[379139784,1755159038001,-500.0,0.00033872,2]
[379139785,1755159038014,-1607.43,0.00033884,2]
[379139786,1755159038027,-1607.43,0.00033902,2]
[379139787,1755159038039,-1607.43,0.00033919,2]
[379139788,1755159038051,-1607.43,0.00033937,2]
[379139789,1755159038063,-837.38,0.00034511,2]
[379139790,1755159038075,-261.0,0.00034567,5]
[379139791,1755159038087,-176.34,0.00034638,30]
[379139792,1755159038099,-1000.0,0.00035004,2]
[379139793,1755159038118,-2956.94,0.00035005,2]
[379139794,1755159038134,-150.0,0.00035415,2]
[379139795,1755159038149,-167.06,0.00035448,2]
[379139796,1755159038163,-170.0,0.00035466,7]
[379139797,1755159038179,-200.0,0.00035595,2]
[379139798,1755159038194,-512.13,0.00035697,2]
[379139799,1755159038208,-200.0,0.00035794,2]
[379139801,1755159038223,-164.747116,0.00035851,15]
[379139803,1755159038240,-1578.34,0.00035852,2]
[379139806,1755159038256,-1000.0,0.00035859,2]
[379139808,1755159038272,-514.0,0.00035947,11]
[379139811,1755159038286,-517.0,0.00035947,11]
[379139813,1755159038300,-2880.0,0.00036,9]
[379139816,1755159038322,-837.38,0.00036155,2]
[379139818,1755159038336,-1144.27,0.00036395,120]
[379139821,1755159038351,-16214.81832691,0.00036605,30]
[379139823,1755159038365,-1338.18642296,0.00036609,27]
[379139826,1755159038383,-305.6754131,0.00036609,27]
[379139828,1755159038397,-371.76,0.00036768,30]
[379139829,1755159038412,-3000.0,0.000368,9]
[379139830,1755159038427,-167.48,0.00036878,2]
[379139831,1755159038440,-225.35,0.00036964,2]
[379139832,1755159038454,-1746.98,0.00037018,2]
[379139833,1755159038467,-964.0,0.00037029,7]
[379139898,1755159039523,-262.45333229,0.00037127,47]
[379139961,1755159040924,-569.06190002,0.00037127,47]
[379139971,1755159041010,-569.01800516,0.00037127,47]
[379139997,1755159042148,-289.28534095,0.00037127,47]
[379139998,1755159042276,-279.62542158,0.00037127,47]
[379139999,1755159042285,-176.34,0.00037166,60]
[379140000,1755159042295,-265.96,0.00037178,2]
[379140001,1755159042306,-183.87172437,0.000372,120]
[379140002,1755159042316,-500.0,0.00037205,2]
[379140003,1755159042326,-503.53,0.00037292,60]
[379140004,1755159042335,-217.31,0.00037314,60]
[379140005,1755159042345,-154.63,0.00037314,60]
[379140006,1755159042354,-150.5,0.00037314,60]
[379140007,1755159042363,-224.59043438,0.00037357,2]
[379140008,1755159042377,-1000.0,0.00037391,2]
[379140009,1755159042386,-503.53,0.00037392,60]
[379140010,1755159042396,-286.857,0.00037405,2]
[379140011,1755159042405,-716.0,0.00037405,2]
[379140012,1755159042415,-20.61392702,0.00037405,2]
[379140013,1755159042639,-1166.86507298,0.00037405,2]
[379140014,1755159042650,-6086.0,0.00037405,2]
[379140015,1755159042659,-4149.0,0.00037405,2]
[379140016,1755159042670,-893.0,0.00037405,2]
[379140017,1755159042681,-10068.71021885,0.00037405,2]
[379140018,1755159042691,-1000.0,0.00037414,2]
[379140019,1755159042700,-217.31,0.00037414,60]
[379140020,1755159042711,-154.63,0.00037414,60]
[379140021,1755159042720,-23658.62211262,0.00037415,2]
[379140022,1755159042737,-732.47144528,0.00037415,2]
[379140023,1755159042750,-10212.892985,0.00037415,2]
[379140060,1755159044636,-677.72324126,0.00037415,2]
[379140061,1755159044719,-7336.8,0.00037415,2]
[379140062,1755159044732,-643.39999995,0.00037415,2]
[379140066,1755159046462,-155.34088849,0.000356,60]
[379140067,1755159046472,-1103.4880898,0.00036667,20]
[379140068,1755159046483,-33402.88346359,0.00037415,2]
[379140069,1755159046494,-6793.1567523,0.00037415,2]
[379140070,1755159046504,-963.0,0.00037457,7]
[379140071,1755159046513,-500.0,0.00037473,5]
[379140072,1755159046523,-500.0,0.00037473,5]
[379140073,1755159046533,-500.0,0.00037473,5]
[379140074,1755159046542,-500.0,0.00037473,5]
[379140075,1755159046552,-530.09559838,0.00037473,5]
[379140076,1755159046562,-403.4181189,0.00037473,5]
[379140077,1755159046572,-501.10745392,0.00037473,5]
[379140078,1755159046581,-500.40590492,0.00037473,5]
[379140079,1755159046591,-201.37027176,0.00037473,5]
[379140080,1755159046600,-500.0,0.00037473,5]
[379140081,1755159046609,-500.0,0.00037473,5]
[379140082,1755159046619,-500.0,0.00037473,5]
[379140083,1755159046628,-449.44559963,0.00037473,5]
[379140084,1755159046760,-50.55440037,0.00037473,5]
[379140085,1755159046769,-384.47803983,0.00037473,5]
[379140086,1755159046786,-116.95891822,0.00037473,5]
[379140087,1755159046796,-432.5320802,0.00037473,5]
[379140115,1755159075733,509.0,0.00030082,120]
[379140118,1755159103398,882.71670757,0.0003013,120]
[379140119,1755159122806,250.0,0.00015,2]
[379140120,1755159123693,300.0,0.00017,2]
[379140122,1755159145625,261.77,0.00013699,2]
[379140212,1755159546609,171.82219271,0.00019987,2]
[379140312,1755159701395,162.7823751,0.00019987,2]
[379140315,1755159755854,178.65,0.00016712,2]
[379140316,1755159833506,5708.07001411,0.00024,30]
[379140329,1755159857099,191.57,0.00029291,120]
[379140337,1755159908636,33270.02278739,0.00019,2]
[379140351,1755159946571,5000.0,0.0001995,15]
[379140352,1755159946603,10284.63657756,0.0001995,15]
[379140353,1755159998101,-264.33469051,0.00018882,2]
[379140354,1755160055643,32859.13098582,0.00018,2]
[379140355,1755160070244,3311.11333589,0.00013,2]
[379140356,1755160074955,3915.54600554,0.00018,2]
[379140360,1755160129563,1221.0,0.00026326,120]
[379140361,1755160129807,150.5,0.00026326,120]
[379140362,1755160130228,1221.0,0.00026316,120]
[379140363,1755160130380,150.5,0.00026316,120]
[379140364,1755160130478,1221.0,0.00026306,120]
[379140365,1755160130842,150.5,0.00026306,120]
[379140378,1755160235214,-224.884126,0.00018693,2]
[379140379,1755160235224,-176.60801016,0.00018873,2]
[379140380,1755160235233,-295.55606476,0.00018882,2]
[379140381,1755160235244,-833.26281908,0.00018882,2]
[379140382,1755160235253,-92.71568076,0.000189,2]
[379140383,1755160235286,-73.47573282,0.000189,2]
[379140384,1755160235295,-342.12026907,0.000189,2]
[379140385,1755160235305,-250.0,0.00018941,2]
[379140386,1755160235314,-500.0,0.00018973,2]
[379140387,1755160235324,-500.0,0.00018973,2]
[379140389,1755160235333,-500.0,0.00018973,2]
[379140391,1755160235342,-503.60571395,0.00018973,2]
[379140393,1755160235351,-500.0,0.00018973,2]
[379140395,1755160235360,-300.0,0.00018998,2]
[379140397,1755160235370,-1200.0,0.00018998,2]
[379140399,1755160235379,-500.0,0.00018999,2]
[379140401,1755160235388,-279.4090788,0.00018999,2]
[379140402,1755160235398,-222.01662003,0.00018999,2]
[379140403,1755160235407,-500.0,0.00018999,2]
[379140404,1755160235416,-255.39676333,0.00018999,2]
[379140405,1755160235425,-32166.96784096,0.00019,2]
[379140406,1755160235436,-14251.8,0.00019,2]
[379140407,1755160235448,-3735.43415599,0.00019,2]
[379140625,1755160237613,-485066.13963637,0.00019,2]
[379140627,1755160237622,-507866.78092868,0.00019,2]
[379140629,1755160237632,-226.60977974,0.00019,2]
[379140631,1755160237642,-2680.08470785,0.0001917,2]
[379140633,1755160237651,-500.0,0.00019521,2]
[379140635,1755160237660,-500.0,0.00019521,2]
[379140637,1755160237670,-19621.37244725,0.00019529,2]
[379140639,1755160237682,-996.06479658,0.00019529,2]
[379140641,1755160237692,-250.0,0.00019629,2]
[379140643,1755160237701,-1158.48,0.00020039,2]
[379140645,1755160237711,-151.0,0.00020087,2]
[379140648,1755160237722,-500.0,0.00020087,2]
[379140649,1755160237731,-261.77,0.00020187,2]
[379140651,1755160237740,-933.24,0.00020301,2]
[379140653,1755160237749,-342.12026907,0.00020455,2]
[379140655,1755160237759,-154.02105334,0.00020635,2]
[379140657,1755160237768,-420.0,0.00020708,2]
[379140659,1755160237779,-250.0,0.0002077,2]
[379140661,1755160237788,-300.0,0.0002077,2]
[379140663,1755160237799,-1680.0,0.00020808,2]
[379140665,1755160237808,-8066.23427779,0.00021,2]
[379140666,1755160237818,-1158.48,0.00021041,2]
[379140667,1755160237827,-720.85,0.00021297,2]
[379140668,1755160237837,-13471.61,0.00021432,2]
[379140669,1755160237847,-19621.37244719,0.00021798,2]
[379140670,1755160237856,-200.52759154,0.00021918,2]
[379140671,1755160237873,-159.89952996,0.00021973,2]
[379140672,1755160237885,-501.61970843,0.00021973,2]
[379140673,1755160237896,-500.0,0.00021973,2]
[379140674,1755160237905,-503.00750875,0.00021973,2]
[379140675,1755160237915,-156.44,0.0002199,2]
[379140676,1755160237925,-360559.87409165,0.00022,4]
[379140677,1755160237934,-342.12026907,0.0002201,2]
[379140678,1755160237944,-1158.48,0.00022043,2]
[379140679,1755160237953,-235.18018332,0.0002211,2]
[379140680,1755160237963,-8945.88,0.00022143,2]
[379140681,1755160237972,-3120.78109616,0.000225,2]
[379140682,1755160237982,-394.01574397,0.00022521,2]
[379140683,1755160237991,-364.0,0.00022572,2]
[379140684,1755160238001,-500.0,0.00022667,2]
[379140685,1755160238010,-243.09128854,0.00022667,2]
[379140686,1755160238020,-501.13996969,0.00022667,2]
[379140687,1755160238033,-500.0,0.00022667,2]
[379140688,1755160238043,-500.0,0.00022667,2]
[379140690,1755160238053,-500.0,0.00022667,2]
[379140692,1755160238062,-500.0,0.00022667,2]
[379140694,1755160238072,-500.87252816,0.00022667,2]
[379140696,1755160238082,-2351.0,0.00022791,2]
[379140697,1755160238091,-502.74306788,0.00023,2]
[379140698,1755160238100,-500.0,0.00023,2]
[379140699,1755160238109,-504.47411049,0.00023,2]
[379140700,1755160238118,-500.0,0.00023,2]
[379140701,1755160238127,-500.0,0.00023,2]
[379140702,1755160238136,-500.0,0.00023,2]
[379140703,1755160238146,-500.0,0.00023,2]
[379140704,1755160238155,-159.89914155,0.00023,2]
[379140705,1755160238165,-500.0,0.00023,2]
[379140706,1755160238174,-159.90097722,0.00023,2]
[379140707,1755160238183,-500.0,0.00023,2]
[379140708,1755160238193,-500.0,0.00023,2]
[379140709,1755160238203,-159.90008634,0.00023,2]
[379140710,1755160238211,-500.0,0.00023,2]
[379140711,1755160238221,-159.89794123,0.00023,2]
[379140712,1755160238231,-500.0,0.00023,2]
[379140713,1755160238240,-533.84452012,0.00023,2]
[379140714,1755160238250,-155.44130001,0.00023,2]
[379140715,1755160238259,-1158.48,0.00023045,2]
[379140716,1755160238269,-166.19141355,0.00023109,2]
[379140717,1755160238282,-500.0,0.00023215,2]
[379140718,1755160238293,-500.0,0.00023215,2]
[379140719,1755160238302,-507.63299967,0.00023215,2]
[379140720,1755160238313,-500.0,0.00023215,2]
[379140721,1755160238322,-500.0,0.00023548,2]
[379140722,1755160238332,-159.64248216,0.00023548,2]
[379140723,1755160238342,-544.16993559,0.00023548,2]
[379140724,1755160238352,-160.76371587,0.00023548,2]
[379140725,1755160238364,-500.0,0.00023548,2]
[379140726,1755160238373,-6766.01624109,0.00023748,3]
[379140727,1755160238383,-60575.73177408,0.00024,2]
[379140728,1755160238393,-8327.49329345,0.00024,14]
[379140729,1755160238403,-5000.00904782,0.00024,5]
[379140730,1755160238412,-249.91026753,0.00024,2]
[379140731,1755160238422,-19621.37244719,0.00024067,2]
[379140732,1755160238431,-865.5,0.00024404,2]
[379140733,1755160238441,-235253.310376,0.000248,3]
[379140734,1755160238451,-652.2747779,0.000249,2]
[379140735,1755160238460,-269656.591223,0.000249,3]
[379140736,1755160238470,-846.0,0.00024963,2]
[379140737,1755160238479,-150.0,0.00025,30]
[379140738,1755160238489,-164.66,0.00025129,2]
[379140739,1755160238498,-169.73,0.00025697,2]
[379140740,1755160238508,-19621.37244719,0.00026336,2]
[379140741,1755160238518,-261.77,0.00026676,2]
[379140742,1755160238529,-182.11159332,0.00026849,14]
[379140743,1755160238539,-250.0,0.00026952,2]
[379140744,1755160238549,-458.13769775,0.00027,3]
[379140745,1755160238559,-277.0,0.00027056,2]
[379140746,1755160238568,-169.73,0.00027111,2]
[379140747,1755160238578,-523.0,0.00027137,2]
[379140748,1755160238587,-521.0,0.00027137,2]
[379140749,1755160238598,-501.0,0.00027137,2]
[379140750,1755160238607,-508.0,0.00027137,2]
[379140751,1755160238616,-159.86769431,0.000272,2]
[379140752,1755160238625,-166.19141355,0.00027319,2]
[379140753,1755160238635,-3585.78688486,0.0002739,7]
[379140754,1755160238644,-1000.0,0.00027397,7]
[379140755,1755160238653,-155.34088849,0.000274,2]
[379140756,1755160238662,-155.34088849,0.000274,2]
[379140757,1755160238671,-652.27477773,0.00027827,8]
[379140758,1755160238680,-179014.56044687,0.000279,3]
[379140759,1755160238693,-159.53260958,0.00028357,5]
[379140760,1755160238702,-500.0,0.00028357,5]
[379140761,1755160238711,-500.0,0.00028357,5]
[379140762,1755160238721,-169.73,0.00028525,2]
[379140763,1755160238731,-19621.37244719,0.00028605,2]
[379140764,1755160238740,-260.46,0.00028737,30]
[379140765,1755160238750,-733.83890671,0.00028905,5]
[379140766,1755160238762,-9999.99,0.00029009,2]
[379140767,1755160238772,-414.46,0.00029009,2]
[379140768,1755160238783,-150.99,0.00029009,2]
[379140769,1755160238793,-9999.99,0.00029009,2]
[379140770,1755160238803,-531.26,0.00029009,2]
[379140771,1755160238813,-2045.91,0.00029009,90]
[379140772,1755160238822,-150.99,0.00029009,2]
[379140773,1755160238832,-1153.23,0.00029321,2]
[379140774,1755160238841,-1153.23,0.00029337,2]
[379140775,1755160238851,-865.5,0.0002935,2]
[379140776,1755160238860,-1153.23,0.00029352,2]
[379140777,1755160238870,-1153.23,0.00029367,2]
[379140778,1755160238879,-1153.23,0.00029383,2]
[379140779,1755160238888,-1153.23,0.00029398,2]
[379140780,1755160238897,-1153.23,0.00029414,2]
[379140781,1755160238906,-1153.23,0.00029429,2]
[379140782,1755160238915,-1153.23,0.00029445,2]
[379140783,1755160238927,-1153.23,0.0002946,2]
[379140784,1755160238936,-1153.23,0.00029475,2]
[379140785,1755160238945,-1153.23,0.00029491,2]
[379140786,1755160238955,-1153.23,0.00029506,2]
[379140787,1755160238964,-1153.23,0.00029522,2]
[379140788,1755160238973,-1153.23,0.00029537,2]
[379140789,1755160238983,-3514.1,0.00029537,2]
[379140790,1755160238992,-1153.23,0.00029553,2]
[379140791,1755160239305,-521.04,0.00029553,2]
[379140792,1755160239316,-170.0,0.00029553,7]
[379140793,1755160239326,-1153.23,0.00029568,2]
[379140794,1755160239335,-1153.23,0.00029583,2]
[379140795,1755160239345,-1153.23,0.00029599,2]
[379140796,1755160239354,-1153.23,0.00029614,2]
[379140797,1755160239365,-646.73,0.00029673,2]
[379140798,1755160239375,-200.0,0.00029708,2]
[379140799,1755160239384,-523.0,0.0002978,4]
[379140800,1755160239394,-151.0,0.00029797,2]
[379140801,1755160239403,-151.0,0.00029797,2]
[379140802,1755160239413,-600.0,0.00029797,2]
[379140803,1755160239422,-600.0,0.00029797,2]
[379140804,1755160239431,-600.0,0.00029797,2]
[379140805,1755160239441,-623.97661887,0.00029797,2]
[379140806,1755160239450,-500.0,0.00029797,2]
[379140807,1755160239459,-500.0,0.00029797,2]
[379140808,1755160239469,-500.0,0.00029797,2]
[379140809,1755160239478,-500.0,0.00029797,2]
[379140810,1755160239488,-151.0,0.00029797,2]
[379140811,1755160239498,-151.0,0.00029797,2]
[379140812,1755160239508,-151.0,0.00029797,2]
[379140813,1755160239517,-151.0,0.00029797,2]
[379140814,1755160239529,-151.0,0.00029797,2]
[379140815,1755160239539,-154.42954065,0.00029797,2]
[379140816,1755160239549,-209.81193382,0.00029797,2]
[379140817,1755160239559,-720.85,0.00029816,2]
[379140818,1755160239568,-1000.0,0.00029843,2]
[379140819,1755160239577,-500.0,0.00029852,2]
[379140820,1755160239587,-509.44589167,0.00029873,5]
[379140821,1755160239596,-500.0,0.00029873,5]
[379140822,1755160239605,-159.89948746,0.00029873,5]
[379140823,1755160239614,-159.89849516,0.00029873,2]
[379140824,1755160239624,-159.89969323,0.00029873,2]
[379140825,1755160239633,-200.0,0.0002988,2]
[379140826,1755160239643,-500.0,0.00029907,2]
[379140827,1755160239651,-169.73,0.00029938,2]
[379140828,1755160239662,-500.0,0.00029962,2]
[379140829,1755160239672,-52897.9560536,0.0003,5]
[379140830,1755160239683,-10000.0,0.0003,10]
[379140831,1755160239696,-458.13769775,0.0003,10]
[379140832,1755160239706,-271.785278,0.0003,7]
[379140833,1755160239716,-151.948655,0.0003,7]
[379140834,1755160239730,-500.0,0.00030017,2]
[379140835,1755160239740,-500.0,0.00030072,2]
[379140836,1755160239750,-500.0,0.00030127,2]
[379140837,1755160239762,-5340.72336719,0.0003013,2]
[379140838,1755160239780,-540.8969765,0.00030182,2]
[379140839,1755160239791,-151.0,0.00030345,2]
[379140840,1755160239801,-260.46,0.00030387,30]
[379140841,1755160239812,-1000.0,0.00030421,5]
[379140842,1755160239823,-521.04,0.00030661,2]
[379140843,1755160239833,-652.27477773,0.00030754,14]
[379140844,1755160239842,-243.43,0.00030834,2]
[379140845,1755160239852,-19621.37244719,0.00030873,2]
[379140846,1755160239861,-6630.61,0.00030928,2]
[379140847,1755160239871,-666.0,0.00030948,3]
[379140848,1755160239880,-1500.0,0.00030968,5]
[379140849,1755160239889,-311.0,0.00031,2]
[379140850,1755160239899,-1038.438631,0.00031,2]
[379140851,1755160239908,-2504.33,0.00031164,2]
[379140852,1755160239918,-150.0,0.00031369,2]
[379140853,1755160239927,-1132.11,0.00031388,2]
[379140854,1755160239937,-19217.61202405,0.0003143,4]
[379140855,1755160239946,-436.26,0.00031485,30]
[379140856,1755160239955,-2017.6759718,0.00031516,5]
[379140857,1755160239965,-166.19141355,0.00031528,15]
[379140858,1755160239974,-521.04,0.00031769,2]
[379140859,1755160239985,-163.0,0.00031781,14]
[379140860,1755160239994,-164.66,0.00031978,2]
[379140861,1755160240003,-1697.04,0.0003198,2]
[379140862,1755160240012,-260.46,0.00032038,30]
[379140863,1755160240021,-243.43,0.00032204,2]
[379140864,1755160240035,-301.35,0.00032247,120]
[379140865,1755160240044,-523.0,0.00032423,7]
[379140866,1755160240054,-299.0,0.00032721,2]
[379140867,1755160240063,-174.102,0.00032841,33]
[379140868,1755160240072,-2255.711,0.00032841,33]
[379140869,1755160240081,-521.04,0.00032877,2]
[379140870,1755160240091,-322.0,0.00032953,2]
[379140871,1755160240101,-333.0,0.00033,2]
[379140872,1755160240111,-2867.07781415,0.00033,120]
[379140873,1755160240121,-160.0,0.00033023,2]
[379140874,1755160240130,-211.86673127,0.00033023,2]
[379140875,1755160240139,-19621.37244719,0.00033142,2]
[379140876,1755160240149,-261.77,0.00033165,2]
[379140877,1755160240158,-290.0,0.00033178,2]
[379140878,1755160240167,-1221.0,0.00033552,120]
[379140879,1755160240176,-150.5,0.00033552,120]
[379140880,1755160240185,-1221.0,0.00033562,120]
[379140881,1755160240195,-150.5,0.00033562,120]
[379140882,1755160240204,-1221.0,0.00033572,120]
[379140883,1755160240213,-150.5,0.00033572,120]
[379140884,1755160240223,-1000.0,0.00033573,2]
[379140885,1755160240232,-99746.75,0.00033583,2]
[379140886,1755160240241,-652.27477773,0.00033682,21]
[379140887,1755160240251,-260.46,0.00033688,30]
[379140888,1755160240260,-521.04,0.00033985,2]
[379140889,1755160240270,-7402.95,0.00034098,2]
[379140890,1755160240280,-2166.42,0.00034233,120]
[379140891,1755160240290,-865.5,0.00034296,5]
[379140892,1755160240299,-168.16,0.00034326,14]
[379140893,1755160240309,-2311.73,0.00034338,2]
[379140894,1755160240318,-3124.51831724,0.0003489,14]
[379140895,1755160240328,-31772.72939477,0.00035,30]
[379140896,1755160240337,-458.13769775,0.00035,30]
[379140897,1755160240347,-3900.0,0.00035,7]
[379140898,1755160240357,-1802.00561104,0.00035,4]
[379140899,1755160240366,-3236.90620086,0.00035,30]
[379140900,1755160240375,-523.0,0.00035066,10]
[379140901,1755160240385,-150.0,0.000351,2]
[379140902,1755160240395,-260.46,0.00035338,60]
[379140903,1755160240404,-19621.37244719,0.00035411,2]
[379140904,1755160240414,-166.19141355,0.00035738,15]
[379140905,1755160240423,-4591.31831735,0.00035918,120]
[379140906,1755160240433,-10183.3,0.00036226,2]